bitfinex/quotes_BTCUSD_20240827
["timestamp","ask_amount","ask_price","bid_price","bid_amount"]
[1724732325229,2.97234797,63067.0,63066.0,0.0009064]
[1724732325668,2.99721167,63067.0,63066.0,0.0009064]
[1724732325869,2.99621167,63067.0,63066.0,0.0009064]
[1724732326080,2.99559335,63067.0,63066.0,0.0009064]
[1724732326278,3.00959335,63067.0,63066.0,0.0009064]
[1724732326482,2.99559335,63067.0,63066.0,0.0009064]
[1724732327880,3.00959335,63067.0,63066.0,0.0009064]
[1724732329059,2.19662135,63067.0,63066.0,0.0009064]
[1724732329265,1.98510035,63067.0,63066.0,0.0009064]
[1724732334129,2.14123203,63067.0,63066.0,0.0009064]
[1724732334580,2.12723203,63067.0,63066.0,0.0009064]
[1724732334814,2.11323203,63067.0,63066.0,0.0009064]
[1724732335058,2.14123203,63067.0,63066.0,0.0009064]
[1724732335284,2.12723203,63067.0,63066.0,0.0009064]
[1724732335495,1.95710035,63067.0,63066.0,0.0009064]
[1724732335712,2.07303035,63067.0,63066.0,0.0009064]
[1724732335934,1.79647835,63067.0,63066.0,0.0009064]
[1724732336163,2.03526835,63067.0,63066.0,0.0009064]
[1724732337019,2.42552235,63067.0,63066.0,0.0009064]
[1724732337728,2.15072235,63067.0,63066.0,0.0009064]
[1724732343037,1.97208635,63067.0,63066.0,0.0009064]
[1724732343291,1.77047835,63067.0,63066.0,0.0009064]
[1724732343783,1.99630235,63067.0,63066.0,0.0009064]
[1724732344267,1.92050235,63067.0,63066.0,0.0009064]
[1724732345885,1.86962235,63067.0,63066.0,0.0009064]
[1724732347329,1.78053954,63067.0,63066.0,0.0009064]
[1724732347534,1.86962235,63067.0,63066.0,0.0009064]
[1724732348049,1.94562235,63067.0,63066.0,0.0009064]
[1724732348254,1.97162235,63067.0,63066.0,0.0009064]
[1724732349291,1.95197052,63067.0,63066.0,0.0009064]
[1724732349735,4.18569352,63067.0,63066.0,0.0009064]
[1724732350401,4.32807183,63067.0,63066.0,0.0009064]
[1724732350608,4.30320813,63067.0,63066.0,0.0009064]
[1724732352244,4.16082982,63067.0,63066.0,0.0009064]
[1724732362402,4.14682982,63067.0,63066.0,0.0009064]
[1724732362685,4.16082982,63067.0,63066.0,0.0009064]
[1724732362902,3.79455782,63067.0,63066.0,0.0009064]
[1724732363079,3.51990982,63067.0,63066.0,0.0009064]
[1724732363295,3.42638582,63067.0,63066.0,0.0009064]
[1724732364275,3.41238582,63067.0,63066.0,0.0009064]
[1724732364500,3.42638582,63067.0,63066.0,0.0009064]
[1724732364872,3.41238582,63067.0,63066.0,0.0009064]
[1724732365282,3.42638582,63067.0,63066.0,0.0009064]
[1724732365618,3.06754501,63067.0,63066.0,0.0009064]
[1724732365819,2.43938882,63067.0,63066.0,0.0009064]
[1724732366277,2.42538882,63067.0,63066.0,0.0009064]
[1724732366480,2.43938882,63067.0,63066.0,0.0009064]
[1724732368182,3.06285282,63067.0,63066.0,0.0009064]
[1724732368384,3.05086782,63067.0,63066.0,0.0009064]
[1724732369935,2.98461782,63067.0,63066.0,0.0009064]
[1724732375756,2.89553501,63067.0,63066.0,0.0009064]
[1724732375992,2.61897882,63067.0,63066.0,0.0009064]
[1724732378389,2.46368665,63067.0,63066.0,0.0009064]
[1724732383246,2.99246684,63067.0,63066.0,0.0009064]
[1724732383451,1.58073184,63067.0,63066.0,0.1386064]
[1724732383677,1.66981465,63067.0,63066.0,0.1386064]
[1724732383888,1.78103465,63067.0,63066.0,0.1386064]
[1724732384289,1.76703465,63067.0,63066.0,0.1386064]
[1724732384664,1.78103465,63067.0,63066.0,0.1386064]
[1724732385275,1.75303465,63067.0,63066.0,0.1386064]
[1724732385482,1.78103465,63067.0,63066.0,0.1386064]
[1724732385889,1.76703465,63067.0,63066.0,0.1386064]
[1724732386094,1.78103465,63067.0,63066.0,0.1386064]
[1724732388676,0.84648584,63067.0,63066.0,0.1386064]
[1724732388876,0.98930486,63067.0,63066.0,0.1386064]
[1724732389052,1.16360884,63067.0,63066.0,0.1386064]
[1724732389469,0.84648584,63067.0,63066.0,0.1386064]
[1724732389830,0.83248584,63067.0,63066.0,0.1386064]
[1724732390282,0.81848584,63067.0,63066.0,0.1386064]
[1724732390510,0.91848584,63067.0,63066.0,0.1386064]
[1724732390894,0.92648584,63067.0,63066.0,0.1386064]
[1724732391101,0.93548584,63067.0,63066.0,0.1386064]
[1724732391504,0.93548584,63067.0,63066.0,0.1396064]
[1724732391505,0.03367884,63067.0,63066.0,0.1396064]
[1724732391708,0.10397676,63067.0,63066.0,0.2981704]
[1724732391950,0.08818682,63067.0,63066.0,0.2981704]
[1724732392330,0.06438145,63067.0,63066.0,0.6152984]
[1724732392904,0.06438145,63067.0,63066.0,0.9324264]
[1724732393311,0.05638145,63067.0,63066.0,0.9324264]
[1724732393517,0.000824,63067.0,63066.0,0.9324264]
[1724732393722,0.008824,63067.0,63066.0,0.9324264]
[1724732393923,0.008824,63067.0,63066.0,0.9354264]
[1724732393924,0.009824,63067.0,63066.0,0.9354264]
[1724732394583,0.001824,63067.0,63066.0,0.9354264]
[1724732395217,0.02768014,63067.0,63066.0,0.9354264]
[1724732399298,0.02768014,63067.0,63066.0,0.6182984]
[1724732401394,0.002824,63067.0,63066.0,0.6182984]
[1724732402871,0.002824,63067.0,63066.0,0.70738121]
[1724732404274,0.02767953,63067.0,63066.0,0.70738121]
[1724732407107,0.02767953,63067.0,63066.0,1.02450921]
[1724732407749,0.002824,63067.0,63066.0,1.02450921]
[1724732407951,0.002824,63067.0,63066.0,0.70738121]
[1724732409231,0.002824,63067.0,63066.0,1.02450921]
[1724732410555,0.002824,63067.0,63066.0,0.70738121]
[1724732412705,0.02767943,63067.0,63066.0,0.70738121]
[1724732414205,0.02767943,63067.0,63066.0,1.02450921]
[1724732414390,0.02767943,63067.0,63066.0,0.70738121]
[1724732415294,0.02767943,63067.0,63066.0,1.02450921]
[1724732416561,0.02767943,63067.0,63066.0,0.70738121]
[1724732417362,0.02767943,63067.0,63066.0,1.02450921]
[1724732417930,0.002824,63067.0,63066.0,0.70738121]
[1724732418568,0.002824,63067.0,63066.0,1.02450921]
[1724732419338,0.002824,63067.0,63066.0,0.9354264]
[1724732419746,0.002824,63067.0,63066.0,1.02450921]
[1724732421388,0.002824,63067.0,63066.0,0.70738121]
[1724732421389,0.02767997,63067.0,63066.0,0.70738121]
[1724732421565,0.02767997,63067.0,63066.0,1.02450921]
[1724732422999,0.002824,63067.0,63066.0,1.02450921]
[1724732425726,0.002824,63067.0,63066.0,0.9354264]
[1724732425929,0.002824,63067.0,63066.0,1.02450921]
[1724732426346,0.02767997,63067.0,63066.0,1.02450921]
[1724732427725,0.02767997,63067.0,63066.0,0.70738121]
[1724732428137,0.02767997,63067.0,63066.0,1.02450921]
[1724732429209,0.002824,63067.0,63066.0,1.02450921]
[1724732430566,0.002824,63067.0,63066.0,0.70738121]
[1724732431674,0.002824,63067.0,63066.0,1.02450921]
[1724732431878,0.002824,63067.0,63066.0,1.03791652]
[1724732432530,0.02767988,63067.0,63066.0,1.03791652]
[1724732432747,0.02767988,63067.0,63066.0,1.06091652]
[1724732432957,0.02767988,63067.0,63066.0,1.37804452]
[1724732433190,0.02767988,63067.0,63066.0,1.53422253]
[1724732433398,0.002824,63067.0,63066.0,1.53422253]
[1724732434071,0.001824,63067.0,63066.0,1.53122253]
[1724732434518,0.002824,63067.0,63066.0,1.53922253]
[1724732434690,0.001824,63067.0,63066.0,1.53922253]
[1724732434917,0.001824,63067.0,63066.0,1.53822253]
[1724732435119,0.002824,63067.0,63066.0,1.54922253]
[1724732435496,0.001824,63067.0,63066.0,1.54222253]
[1724732436151,0.001824,63067.0,63066.0,1.55055682]
[1724732436352,0.002824,63067.0,63066.0,1.56255682]
[1724732437791,0.002824,63067.0,63066.0,1.87968482]
[1724732438016,0.002824,63067.0,63066.0,1.56255682]
[1724732438838,0.002824,63067.0,63066.0,1.87968482]
[1724732439046,0.002824,63067.0,63066.0,1.56255682]
[1724732440325,0.002824,63067.0,63066.0,1.87968482]
[1724732441285,0.001824,63067.0,63066.0,1.86768482]
[1724732441493,0.001824,63067.0,63066.0,1.86468482]
[1724732441849,0.002824,63067.0,63066.0,1.87568482]
[1724732444680,0.002824,63067.0,63066.0,1.87668482]
[1724732445104,0.002824,63067.0,63066.0,1.98858206]
[1724732445360,0.002824,63067.0,63066.0,1.97668482]
[1724732445570,0.000824,63067.0,63066.0,1.95768482]
[1724732445987,0.000824,63067.0,63066.0,1.98568482]
[1724732451283,0.000824,63067.0,63066.0,2.30281282]
[1724732451486,0.000824,63067.0,63066.0,1.98568482]
[1724732451690,0.000824,63067.0,63066.0,2.30281282]
[1724732451916,0.000824,63067.0,63066.0,2.28881282]
[1724732452134,0.000824,63067.0,63066.0,2.30281282]
[1724732452788,0.000824,63067.0,63066.0,2.28881282]
[1724732452987,0.000824,63067.0,63066.0,2.45601282]
[1724732453192,0.000824,63067.0,63066.0,2.30281282]
[1724732455140,0.000824,63067.0,63066.0,2.21373001]
[1724732455509,0.000824,63067.0,63066.0,2.30281282]
[1724732456202,0.000824,63067.0,63066.0,2.31470969]
[1724732456388,0.000824,63067.0,63066.0,1.99758169]
[1724732456546,0.000824,63067.0,63066.0,1.90849888]
[1724732456732,0.000824,63067.0,63066.0,1.98568482]
[1724732456931,0.000824,63067.0,63066.0,2.30281282]
[1724732457346,0.000824,63067.0,63066.0,1.98568482]
[1724732457974,0.000824,63067.0,63066.0,1.99758641]
[1724732459075,0.000824,63067.0,63066.0,1.98568482]
[1724732459717,0.000824,63067.0,63066.0,1.99758647]
[1724732461306,0.000824,63067.0,63066.0,1.99758646]
[1724732462272,0.000824,63067.0,63066.0,1.98568482]
[1724732462662,0.000824,63067.0,63066.0,1.99758647]
[1724732462854,0.000824,63067.0,63066.0,1.98568482]
[1724732464782,0.000824,63067.0,63066.0,1.89460201]
[1724732464996,0.000824,63067.0,63066.0,0.051648]
[1724732464997,0.104924,63067.0,63066.0,0.051648]
[1724732465212,0.104924,63067.0,63066.0,0.04331371]
[1724732465400,0.104924,63067.0,63066.0,0.60808852]
[1724732465401,0.0811,63067.0,63066.0,0.60808852]
[1724732465601,0.04751697,63078.0,63077.0,0.001]
[1724732465602,0.0811,63078.0,63077.0,0.001]
[1724732465813,0.33460488,63080.0,63079.0,0.001]
[1724732466024,0.62791611,63080.0,63079.0,0.001]
[1724732466222,0.656685,63080.0,63079.0,0.001]
[1724732466523,0.75166502,63080.0,63079.0,0.001]
[1724732467106,0.656685,63080.0,63079.0,0.001]
[1724732467340,0.7516651,63080.0,63079.0,0.001]
[1724732467952,0.4346081,63080.0,63079.0,0.001]
[1724732468183,0.41091537,63080.0,63079.0,0.001]
[1724732468330,0.15238737,63080.0,63079.0,0.001]
[1724732468689,0.263428,63080.0,63079.0,0.001]
[1724732469062,0.263428,63080.0,63079.0,0.00961839]
[1724732469063,0.580485,63080.0,63079.0,0.00961839]
[1724732469278,0.580485,63080.0,63079.0,0.001]
[1724732472186,0.62797408,63080.0,63079.0,0.001]
[1724732472395,0.62879808,63080.0,63079.0,0.001]
[1724732472822,0.62879808,63080.0,63066.0,0.0009064]
[1724732472823,0.4756,63078.0,63077.0,0.001]
[1724732473021,0.4756,63078.0,63075.0,0.001]
[1724732473022,0.0811,63078.0,63075.0,0.001]
[1724732473229,0.158536,63077.0,63076.0,0.00961839]
[1724732473429,0.556708,63077.0,63076.0,0.001]
[1724732474209,0.0811,63077.0,63076.0,0.001]
[1724732474785,0.239636,63077.0,63076.0,0.001]
[1724732475038,0.239636,63077.0,63076.0,0.002]
[1724732475798,0.239636,63077.0,63076.0,0.004]
[1724732476000,0.239636,63077.0,63076.0,0.01261839]
[1724732480994,0.239636,63077.0,63076.0,0.01161839]
[1724732481188,0.239636,63077.0,63076.0,0.00961839]
[1724732481622,0.239636,63077.0,63076.0,0.01061839]
[1724732484848,0.24046,63077.0,63076.0,0.01061839]
[1724732486237,0.28799234,63077.0,63076.0,0.01061839]
[1724732486443,0.24046,63077.0,63076.0,0.01061839]
[1724732488980,0.24046,63077.0,63076.0,0.002]
[1724732489394,0.557532,63077.0,63076.0,0.01078558]
[1724732489398,0.874604,63077.0,63076.0,0.001]
[1724732489646,0.99346869,63077.0,63076.0,0.00978558]
[1724732489929,0.898404,63077.0,63076.0,0.001]
[1724732490870,0.96963188,63077.0,63076.0,0.001]
[1724732491113,0.898404,63077.0,63076.0,0.001]
[1724732491367,0.792692,63076.0,63075.0,0.001]
[1724732491610,0.475677,63068.0,63067.0,0.0019064]
[1724732491899,0.792795,63068.0,63067.0,0.0019064]
[1724732492925,0.04747994,63069.0,63068.0,0.001]
[1724732493170,0.317901,63077.0,63067.0,0.08998921]
[1724732493171,0.04830286,63077.0,63073.0,0.1413]
[1724732493430,0.04830286,63077.0,63076.0,0.08908281]
[1724732493431,0.000824,63077.0,63076.0,0.08908281]
[1724732493674,0.000824,63077.0,63076.0,0.24762081]
[1724732493910,0.000824,63077.0,63076.0,0.25640639]
[1724732494680,0.003824,63077.0,63076.0,0.25640639]
[1724732499650,0.000824,63077.0,63076.0,0.25640639]
[1724732499882,0.02667639,63077.0,63076.0,0.25640639]
[1724732500332,0.02567639,63077.0,63076.0,0.25640639]
[1724732500591,0.02567639,63077.0,63076.0,0.26040639]
[1724732501015,0.02567639,63077.0,63076.0,0.26540639]
[1724732502458,0.07315525,63077.0,63076.0,0.26540639]
[1724732502659,0.04836522,63077.0,63076.0,0.26540639]
[1724732504703,0.04837734,63077.0,63076.0,0.26540639]
[1724732505148,0.000824,63077.0,63076.0,0.26540639]
[1724732505818,0.02567645,63077.0,63076.0,0.26540639]
[1724732507598,0.09700647,63077.0,63076.0,0.26540639]
[1724732507802,0.07217719,63077.0,63076.0,0.26540639]
[1724732509544,0.09596159,63077.0,63076.0,0.26540639]
[1724732510411,0.000824,63077.0,63076.0,0.58248339]
[1724732510622,0.0960065,63077.0,63076.0,0.58248339]
[1724732511260,0.12085895,63077.0,63076.0,0.58248339]
[1724732511481,0.12085895,63077.0,63076.0,0.26540639]
[1724732511910,0.12085895,63077.0,63076.0,0.58248339]
[1724732512172,0.12085895,63077.0,63076.0,0.72378339]
[1724732512604,0.0960065,63077.0,63076.0,0.72378339]
[1724732513027,0.0960065,63077.0,63076.0,1.38193739]
[1724732513244,0.0960065,63077.0,63076.0,1.5381154]
[1724732513245,0.000824,63077.0,63076.0,1.5381154]
[1724732513887,0.02567322,63077.0,63076.0,1.5341154]
[1724732514306,0.02567322,63077.0,63076.0,1.5331154]
[1724732514511,0.02567322,63077.0,63076.0,1.5381154]
[1724732514752,0.02567322,63077.0,63076.0,1.5331154]
[1724732515193,0.000824,63077.0,63076.0,1.5461154]
[1724732515634,0.000824,63077.0,63076.0,1.5421154]
[1724732515854,0.000824,63077.0,63076.0,1.9591924]
[1724732516076,0.000824,63077.0,63076.0,1.9701924]
[1724732528925,0.000824,63077.0,63076.0,1.9461924]
[1724732529232,0.000824,63077.0,63076.0,1.9741924]
[1724732529434,0.000824,63077.0,63076.0,1.9601924]
[1724732529635,0.000824,63077.0,63076.0,1.9461924]
[1724732529864,0.000824,63077.0,63076.0,1.9601924]
[1724732530014,0.000824,63077.0,63076.0,1.9741924]
[1724732530419,0.000824,63077.0,63076.0,1.41185458]
[1724732530629,0.000824,63077.0,63076.0,1.50093739]
[1724732531689,0.000824,63077.0,63076.0,1.6571154]
[1724732532268,0.000824,63077.0,63076.0,1.9741924]
[1724732535562,0.000824,63077.0,63076.0,1.9601924]
[1724732535804,0.000824,63077.0,63076.0,1.9461924]
[1724732535942,0.000824,63077.0,63076.0,1.9601924]
[1724732536157,0.000824,63077.0,63076.0,1.9741924]
[1724732536791,0.000824,63077.0,63076.0,0.18232358]
[1724732536993,0.000824,63077.0,63076.0,0.02378558]
[1724732537192,0.080224,63077.0,63076.0,0.03778558]
[1724732537647,0.080224,63077.0,63076.0,0.02378558]
[1724732537779,0.080224,63077.0,63076.0,0.00978558]
[1724732537981,0.080224,63077.0,63076.0,0.02378558]
[1724732538189,0.080224,63077.0,63076.0,0.00978558]
[1724732538801,0.1050759,63077.0,63076.0,0.00978558]
[1724732538994,0.1050759,63077.0,63076.0,0.02378558]
[1724732539261,0.1050759,63077.0,63076.0,0.03478558]
[1724732539462,0.1050759,63077.0,63076.0,0.00978558]
[1724732539768,0.1050759,63077.0,63076.0,0.001]
[1724732540116,0.2636119,63077.0,63076.0,0.001]
[1724732540326,0.1050759,63077.0,63076.0,0.005]
[1724732540733,0.1050759,63077.0,63076.0,0.0135525]
[1724732540881,0.1050759,63077.0,63076.0,0.006]
[1724732541086,0.1050759,63077.0,63076.0,0.0095525]
[1724732541649,0.2636119,63077.0,63076.0,0.0095525]
[1724732543082,0.23976,63077.0,63076.0,0.0095525]
[1724732543902,0.23976,63077.0,63076.0,0.001]
[1724732544107,0.23876,63077.0,63076.0,0.00962795]
[1724732544882,0.23876,63077.0,63076.0,0.002]
[1724732545082,0.23876,63077.0,63076.0,0.001]
[1724732545533,0.23876,63077.0,63076.0,0.00962795]
[1724732545733,0.23976,63077.0,63076.0,0.001]
[1724732545952,0.23976,63077.0,63076.0,0.00962795]
[1724732546312,0.26361307,63077.0,63076.0,0.00962795]
[1724732546543,0.26461307,63077.0,63076.0,0.00962795]
[1724732553165,0.02667707,63077.0,63076.0,0.08602795]
[1724732553403,0.02667707,63077.0,63076.0,0.94051995]
[1724732553637,0.001824,63077.0,63076.0,0.94051995]
[1724732554147,0.000824,63077.0,63076.0,0.94051995]
[1724732554391,0.000824,63077.0,63076.0,0.62344295]
[1724732554595,0.000824,63077.0,63076.0,0.63144295]
[1724732555615,0.001824,63077.0,63076.0,0.63144295]
[1724732556094,0.000824,63077.0,63076.0,0.63144295]
[1724732556310,0.000824,63077.0,63076.0,0.63844295]
[1724732557618,0.000824,63077.0,63076.0,0.95551995]
[1724732557848,0.000824,63077.0,63076.0,0.63844295]
[1724732560156,0.02567496,63077.0,63076.0,0.72754329]
[1724732560360,0.02567496,63077.0,63076.0,1.04462029]
[1724732560563,0.02567496,63077.0,63076.0,1.16762029]
[1724732560739,0.02567496,63077.0,63076.0,1.48469729]
[1724732561329,0.02567496,63077.0,63076.0,1.16762029]
[1724732561953,0.02567496,63077.0,63076.0,1.48469729]
[1724732562203,0.02567496,63077.0,63076.0,1.16762029]
[1724732562425,0.02567496,63077.0,63076.0,1.48469729]
[1724732564398,0.02567496,63077.0,63076.0,1.6408753]
[1724732564597,0.000824,63077.0,63076.0,1.6408753]
[1724732565375,0.000824,63077.0,63076.0,1.6328753]
[1724732565597,0.000824,63077.0,63076.0,1.6258753]
[1724732565801,0.000824,63077.0,63076.0,1.6398753]
[1724732566003,0.000824,63077.0,63076.0,1.6538753]
[1724732568570,0.000824,63077.0,63076.0,1.6621278]
[1724732569314,0.000824,63077.0,63076.0,1.6481278]
[1724732569776,0.000824,63077.0,63076.0,1.6621278]
[1724732569973,0.000824,63077.0,63076.0,1.6481278]
[1724732570550,0.000824,63077.0,63076.0,1.6621278]
[1724732571017,0.000824,63077.0,63076.0,1.6481278]
[1724732571415,0.000824,63077.0,63076.0,1.6621278]
[1724732572914,0.000824,63077.0,63076.0,1.49769729]
[1724732578520,0.000824,63077.0,63076.0,1.6538753]
[1724732582150,0.000824,63077.0,63076.0,1.9709523]
[1724732582408,0.000824,63077.0,63076.0,1.6538753]
[1724732583083,0.000824,63077.0,63076.0,1.9709523]
[1724732583294,0.000824,63077.0,63076.0,1.6538753]
[1724732587292,0.000824,63077.0,63076.0,1.9709523]
[1724732588559,0.000824,63077.0,63076.0,1.6538753]
[1724732589375,0.000824,63077.0,63076.0,1.66578077]
[1724732589786,0.000824,63077.0,63076.0,1.98285777]
[1724732593831,0.000824,63077.0,63076.0,1.96885777]
[1724732594041,0.000824,63077.0,63076.0,1.98285777]
[1724732594244,0.000824,63077.0,63076.0,1.95485777]
[1724732594652,0.000824,63077.0,63076.0,1.98285777]
[1724732595094,0.000824,63077.0,63076.0,1.96885777]
[1724732595507,0.000824,63077.0,63076.0,1.98285777]
[1724732595700,0.000824,63077.0,63076.0,1.96885777]
[1724732595902,0.000824,63077.0,63076.0,1.95485777]
[1724732596256,0.000824,63077.0,63076.0,1.96885777]
[1724732596679,0.000824,63077.0,63076.0,1.96885629]
[1724732597065,0.000824,63077.0,63076.0,1.98285629]
[1724732597260,0.000824,63077.0,63076.0,1.96885627]
[1724732597495,0.000824,63077.0,63076.0,1.95485627]
[1724732597701,0.000824,63077.0,63076.0,1.96885627]
[1724732598685,0.000824,63077.0,63076.0,1.98285627]
[1724732600179,0.000824,63077.0,63076.0,1.98385627]
[1724732601166,0.000824,63077.0,63076.0,1.98285627]
[1724732602586,0.000824,63077.0,63076.0,1.89375593]
[1724732602793,0.000824,63077.0,63076.0,1.98285627]
[1724732603426,0.000824,63077.0,63076.0,1.98285648]
[1724732604406,0.000824,63077.0,63076.0,1.98285758]
[1724732604878,0.000824,63077.0,63076.0,1.66578058]
[1724732605314,0.000824,63077.0,63076.0,1.68066223]
[1724732605742,0.000824,63077.0,63076.0,1.66578058]
[1724732606364,0.000824,63077.0,63076.0,1.68066247]
[1724732606798,0.000824,63077.0,63076.0,1.52758117]
[1724732607010,0.000824,63077.0,63076.0,1.5156753]
[1724732607844,0.000824,63077.0,63076.0,1.35949729]
[1724732610564,0.000824,63077.0,63076.0,1.42049729]
[1724732610904,0.000824,63077.0,63076.0,1.49619729]
[1724732612352,0.000824,63077.0,63076.0,1.49448992]
[1724732615654,0.000824,63077.0,63076.0,1.49539632]
[1724732618058,0.000824,63077.0,63076.0,1.65257433]
[1724732618297,0.000824,63080.0,63079.0,0.793655]
[1724732618547,0.000824,63080.0,63079.0,2.5395988]
[1724732618771,0.000824,63080.0,63079.0,2.76952132]
[1724732619185,0.000824,63080.0,63079.0,2.8636194]
[1724732619401,0.000824,63080.0,63079.0,2.67528852]
[1724732619646,0.000824,63080.0,63079.0,2.76438886]
[1724732619862,0.000824,63080.0,63079.0,2.85943017]
[1724732620069,0.000824,63080.0,63079.0,2.85943228]
[1724732620486,0.000824,63080.0,63079.0,2.77033194]
[1724732620699,0.000824,63080.0,63079.0,2.87847061]
[1724732620933,0.000824,63080.0,63079.0,2.89247061]
[1724732620934,0.00063319,63080.0,63079.0,2.89247061]
[1724732621179,0.00063319,63080.0,63079.0,2.87847061]
[1724732621400,0.00063319,63080.0,63079.0,2.86865809]
[1724732621902,0.00063319,63080.0,63079.0,1.93166215]
[1724732622159,0.00063319,63080.0,63079.0,1.94566215]
[1724732623101,0.00063319,63080.0,63079.0,2.01617872]
[1724732623319,0.00063319,63080.0,63079.0,1.96866215]
[1724732625503,0.00063319,63080.0,63079.0,2.01617872]
[1724732627571,0.00063319,63080.0,63079.0,1.96866215]
[1724732638943,0.00063319,63080.0,63079.0,1.96956855]
[1724732663508,0.00063319,63080.0,63079.0,2.01707031]
[1724732665459,0.00063319,63080.0,63079.0,1.96956855]
[1724732665670,0.08183319,63080.0,63079.0,0.5124042]
[1724732665877,0.10563319,63080.0,63079.0,0.5124042]
[1724732666080,0.1769503,63080.0,63079.0,0.5124042]
[1724732666280,0.1769503,63080.0,63079.0,0.4984042]
[1724732666281,0.10563319,63080.0,63079.0,0.4984042]
[1724732666510,0.1532127,63080.0,63079.0,0.4984042]
[1724732666710,0.1532127,63080.0,63079.0,0.8294662]
[1724732666918,0.1532127,63080.0,63079.0,0.8154662]
[1724732667129,0.10563319,63080.0,63079.0,0.0228112]
[1724732667528,0.10563319,63080.0,63079.0,0.1813422]
[1724732667529,0.15319416,63080.0,63079.0,0.1813422]
[1724732667732,0.15319416,63080.0,63079.0,0.1953422]
[1724732667957,0.15319416,63080.0,63079.0,0.0368112]
[1724732668337,0.15319416,63080.0,63079.0,0.0289064]
[1724732668538,0.15319416,63080.0,63079.0,0.03662032]
[1724732668539,0.10563319,63080.0,63079.0,0.03662032]
[1724732668746,0.65258746,63080.0,63079.0,0.03662032]
[1724732668959,0.58121819,63080.0,63079.0,0.03662032]
[1724732669183,0.60607006,63080.0,63079.0,0.0289064]
[1724732669593,0.60607006,63080.0,63079.0,0.0149064]
[1724732669788,0.60607006,63080.0,63079.0,0.0289064]
[1724732670299,0.60607006,63080.0,63079.0,0.0149064]
[1724732670501,0.72479658,63080.0,63079.0,0.0009064]
[1724732670799,0.72479658,63080.0,63079.0,0.0289064]
[1724732671006,0.72479658,63080.0,63079.0,0.0149064]
[1724732671494,0.70101006,63080.0,63079.0,0.0289064]
[1724732672553,0.60607006,63080.0,63079.0,0.0289064]
[1724732673645,0.6772284,63080.0,63079.0,0.0289064]
[1724732673849,0.9942854,63080.0,63079.0,0.0289064]
[1724732674274,0.99428542,63080.0,63079.0,0.0289064]
[1724732674479,0.92312706,63080.0,63079.0,0.0289064]
[1724732674902,0.92293626,63080.0,63079.0,0.0289064]
[1724732675125,0.28882226,63080.0,63079.0,0.0289064]
[1724732675325,0.13029426,63080.0,63079.0,0.0289064]
[1724732675545,0.13029426,63080.0,63079.0,0.03688912]
[1724732675546,0.28882226,63080.0,63079.0,0.03688912]
[1724732675951,0.60587926,63080.0,63079.0,0.03688912]
[1724732676164,0.28882226,63080.0,63079.0,0.03688912]
[1724732676377,0.60587926,63080.0,63079.0,0.03688912]
[1724732678029,0.28882226,63080.0,63079.0,0.03688912]
[1724732679252,0.13029426,63080.0,63079.0,0.03688912]
[1724732680409,0.28882226,63080.0,63079.0,0.03688912]
[1724732682045,0.13029426,63080.0,63079.0,0.03688912]
[1724732682245,0.02529426,63080.0,63079.0,0.82954412]
[1724732683258,0.02529426,63080.0,63079.0,0.51248212]
[1724732685068,0.02529426,63080.0,63079.0,0.57338212]
[1724732686566,0.02529426,63080.0,63079.0,0.51248212]
[1724732686768,0.02529426,63080.0,63079.0,1.28440612]
[1724732686974,0.02529426,63080.0,63079.0,1.40740612]
[1724732687155,0.02529426,63080.0,63079.0,1.56358413]
[1724732687356,0.00044239,63080.0,63079.0,1.56358413]
[1724732691018,0.00044239,63080.0,63079.0,1.56458413]
[1724732691621,0.00044239,63080.0,63079.0,1.57276437]
[1724732698230,0.00044239,63080.0,63079.0,1.57086937]
[1724732698646,0.00044239,63080.0,63079.0,1.88793137]
[1724732699035,0.00044239,63080.0,63079.0,1.57086937]
[1724732699904,0.00044239,63080.0,63079.0,1.88793137]
[1724732700545,0.00044239,63080.0,63079.0,1.57086937]
[1724732700770,0.00044239,63080.0,63079.0,1.88793137]
[1724732702354,0.00044239,63080.0,63079.0,1.87491997]
[1724732702560,0.00044239,63080.0,63079.0,1.88891997]
[1724732702764,0.00044239,63080.0,63079.0,1.87491997]
[1724732704945,0.00044239,63080.0,63079.0,1.88891997]
[1724732708073,0.00044239,63080.0,63079.0,1.88982637]
[1724732709891,0.00044239,63080.0,63079.0,0.51248212]
[1724732710102,0.00044239,63080.0,63079.0,0.03688912]
[1724732710311,0.25857039,63080.0,63079.0,0.0289064]
[1724732710536,0.10004239,63080.0,63079.0,0.0289064]
[1724732711188,0.10004239,63080.0,63079.0,0.0149064]
[1724732711393,0.10004239,63080.0,63079.0,0.0259064]
[1724732711796,0.10004239,63080.0,63079.0,0.1704374]
[1724732711797,0.12489193,63080.0,63079.0,0.1704374]
[1724732711997,0.12489193,63080.0,63079.0,0.1834374]
[1724732712412,0.12489193,63080.0,63079.0,0.1724374]
[1724732712628,0.12489193,63080.0,63079.0,0.0139064]
[1724732712838,0.28341993,63080.0,63079.0,0.0249064]
[1724732713483,0.28659545,63080.0,63079.0,0.0249064]
[1724732713686,0.17549123,63080.0,63079.0,0.0249064]
[1724732713885,0.12806745,63080.0,63079.0,0.0249064]
[1724732714082,0.12489193,63080.0,63079.0,0.0249064]
[1724732714742,0.28341993,63080.0,63079.0,0.0249064]
[1724732715739,0.10004239,63080.0,63079.0,0.0249064]
[1724732718754,0.25857039,63080.0,63079.0,0.0249064]
[1724732718957,0.28342113,63080.0,63079.0,0.0249064]
[1724732721686,0.25857039,63080.0,63079.0,0.0249064]
[1724732723341,0.10004239,63080.0,63079.0,0.0249064]
[1724732724332,0.25857039,63080.0,63079.0,0.0249064]
[1724732725291,0.10004239,63080.0,63079.0,0.0249064]
[1724732726373,0.25857039,63080.0,63079.0,0.0249064]
[1724732727526,0.12489308,63080.0,63079.0,0.0249064]
[1724732728741,0.10109308,63080.0,63079.0,0.0249064]
[1724732733136,0.07624239,63080.0,63079.0,0.0249064]
[1724732734905,0.07624239,63080.0,63079.0,0.1834374]
[1724732735254,0.00044239,63080.0,63079.0,0.1834374]
[1724732736342,0.02529257,63080.0,63079.0,0.8778614]
[1724732737270,0.02529257,63080.0,63079.0,0.5607994]
[1724732742706,0.00044239,63080.0,63079.0,0.5607994]
[1724732747125,0.00044239,63080.0,63079.0,0.8778614]
[1724732747381,0.00044239,63080.0,63079.0,0.9573614]
[1724732751642,0.00044239,63080.0,63079.0,1.2744234]
[1724732751861,0.00044239,63080.0,63079.0,1.74766341]
[1724732752092,0.00044239,63080.0,63079.0,1.77066341]
[1724732752309,0.00044239,63080.0,63079.0,1.87166341]
[1724732752778,0.00044239,63080.0,63079.0,1.86066341]
[1724732753218,0.00044239,63080.0,63079.0,1.86717126]